Cogmind - Beta 15 --- EXPLORER MODE // 2025.07.09 @ 07:47:24 Player: viper Result: Destroyed by OR-WEH(R) with Subdweller Shrapnel Launcher Performance ------------- Evolutions (0) 0 Regions Visited (2) 400 Robots Destroyed (35) 175 Value Destroyed (780) 780 Prototype IDs (3) 60 Alien Tech Used (0) 0 Bonus (0) 0 TOTAL SCORE: 1415 Bonus ------- None Cogmind --------- Core Integrity 0/250 Matter 285/300 Energy 400/400 System Corruption 0% Temperature Cool (0) Movement Walking (260) Ox2 Location -10/Subcaves Parts ------- > --- POWER (2) -------- Ion Engine Ion Engine > --- PROPULSION (2) --- Aluminum Leg Aluminum Leg > --- UTILITY (2) ------ High-capacity Storage Unit Power Shielding > --- WEAPON (2) ------- Assault Rifle Subdweller Machine Gun > --- INVENTORY (20) --- Ion Engine Subdweller Power Source Aluminum Leg Aluminum Leg Targeting Computer Targeting Computer Propulsion Shielding EM Pulse Gun Light Assault Rifle Subdweller Machine Gun Light Cannon Light Cannon Datajack Mining Laser Flamer Makeshift Axe Makeshift Spear Peak State ------------ > --- POWER ------------ Ion Engine Ion Engine > --- PROPULSION ------- Aluminum Leg Aluminum Leg > --- UTILITY ---------- High-capacity Storage Unit Power Shielding > --- WEAPON ----------- Light Cannon Makeshift Spear > --- INVENTORY -------- Ion Engine Targeting Computer Targeting Computer Propulsion Shielding EM Pulse Gun Assault Rifle Light Assault Rifle Light Cannon Light Cannon Datajack Mining Laser Flamer [Rating: 12] Favorites ----------- Power Ion Engine Engine Ion Engine Propulsion Aluminum Leg Leg Aluminum Leg Utility Power Shielding Storage High-capacity Storage Unit Protection Power Shielding Weapon Light Cannon Energy Gun EM Pulse Gun Ballistic Gun Battle Rifle Ballistic Cannon Light Cannon Special Weapon Mining Laser Piercing Weapon Makeshift Spear Build | -11 -10 -10 ------- Run | Yrd Mat Sub Slots Evolved 1 | . 1 . Power 1 | . 1 . Propulsion . | . . . Utility . | . . . Weapon . | . . . Parts Attached 22 | 6 11 5 Power 3 | 1 2 . Engine 3 | 1 2 . Core . | . . . Reactor . | . . . Propulsion 5 | 2 1 2 Treads . | . . . Leg 5 | 2 1 2 Wheel . | . . . Hover . | . . . Flight . | . . . Utility 3 | 1 2 . Device . | . . . Storage 2 | 1 1 . Processor . | . . . Hackware . | . . . Protection 1 | . 1 . Artifact . | . . . Weapon 11 | 2 6 3 Energy Gun 1 | 1 . . Energy Cannon . | . . . Ballistic Gun 4 | 1 1 2 Ballistic Cannon 4 | . 4 . Launcher . | . . . Special Weapon 1 | . 1 . Impact Weapon . | . . . Slashing Weapon . | . . . Piercing Weapon 1 | . . 1 Special Melee Weapon . | . . . Unidentified Prototypes . | . . . Parts Lost 3 | . . 3 Power . | . . . Propulsion 1 | . . 1 Utility . | . . . Weapon 2 | . . 2 Highest Loss Streak 2 | . . 2 To Critical Strikes . | . . . Average Backups 11 | 2 8 14 Power 1 | . . 1 Propulsion . | . . . Utility 2 | 2 3 3 Weapon 6 | . 3 8 Tool/Special . | . . . Unused Backups 10 | . 1 9 Power 1 | . . 1 Propulsion 1 | . . 1 Utility 3 | . . 3 Weapon 4 | . 1 3 Tool/Special 1 | . . 1 Average Slot Usage (%) 98 | . 99 97 Engine 25 | . 25 25 Leg 23 | . 24 22 Storage 12 | . 12 12 Protection 11 | . 11 12 Energy Gun 1 | . 2 . Ballistic Gun 8 | . 6 10 Ballistic Cannon 13 | . 14 12 Peak Build Rating 12 | 6 9 12 Average Rating 9 | 5 8 10 On Entrance 5 | . 6 9 Naked Turns . | . . . Heaviest Build 57 | 19 57 57 Greatest Support 20 | 20 20 20 Greatest Overweight (x) 5 | . 2 5 Average Overweight (x) 1 | . 1 2 Largest Inventory Capacity 20 | 10 20 20 Average Capacity 16 | 8 11 20 Most Carried 18 | 5 10 18 Average Carried 11 | 2 8 14 Final Capacity 20 | 10 20 20 Final Carried 17 | 5 10 17 Class Distribution -------------------- 100% | Hacker-Mutant Dominant Class ---------------- Hacker-Mutant | -10/Materials Hacker-Mutant | -10/Subcaves Resources | -11 -10 -10 ----------- Run | Yrd Mat Sub Matter Collected 1068 | 260 401 407 Remotely . | . . . Salvage Created 951 | . 549 402 Parts 62 | . 34 28 Haulers Intercepted 2 | . 2 . Recyclers Shooed . | . . . Parts Field Recycled . | . . . Retrieved Matter . | . . . Parts Self-Destructed . | . . . Prevented . | . . . Kills | -11 -10 -10 ------- Run | Yrd Mat Sub Combat Hostiles Destroyed 24 | . 10 14 Guns 10 | . 5 5 Cannons 14 | . 5 9 Classes Destroyed 10 | . 8 2 Worker 1 | . 1 . Builder 1 | . 1 . Tunneler 1 | . 1 . Hauler 2 | . 2 . Recycler 2 | . 2 . Turret 2 | . . 2 Watcher 2 | . 2 . Swarmer 10 | . 6 4 Grunt 4 | . 4 . Subdweller 10 | . . 10 Best Kill Streak 5 | . 4 5 Combat Bots Only 4 | . 4 4 Max Kills in Single Turn 1 | . 1 1 Gunslinging . | . . . Exploded . | . . . Melee . | . . . Uniques/NPCs Destroyed . | . . . Combat | -11 -10 -10 -------- Run | Yrd Mat Sub Hostile Shots Fired 134 | . 36 98 Missed 40 | . 9 31 Hits 94 | . 27 67 Projectile 94 | . 27 67 AOE 2 | . . 2 Critical Strikes 2 | . 1 1 Damage Taken 968 | . 163 805 Core 254 | . 33 221 Absorbed by Shields . | . . . Redirected to Shielding 33 | . 7 26 Ignored by Resistances 614 | . 113 501 Regen/Repaired (Parts) 83 | . 83 . Core Remaining (%) 100 | 100 . . Volleys Fired 89 | . 36 53 Largest 2 | . 2 2 Hottest 100 | . 100 60 Shots Fired 175 | . 69 106 Gun 77 | . 30 47 Cannon 95 | . 36 59 Launcher . | . . . Special 3 | . 3 . Kinetic 159 | . 53 106 Thermal 3 | . 3 . Explosive . | . . . Electromagnetic 13 | . 13 . Robot Hit Streak 35 | . 9 35 Robot Miss Streak 3 | . 3 2 Penetration Max . | . . . Secondary Targets 2 | . 1 1 Max Gunslinging Chain 1 | . 1 1 Shots Hit Robots 123 | . 43 80 Core Hits 49 | . 21 28 Critical Kills . | . . . Critical Parts Destroyed . | . . . Critical Strikes 6 | . 3 3 Destroy 1 | . . 1 Blast 4 | . 2 2 Corrupt 1 | . 1 . Melee Attacks 1 | . . 1 Impact . | . . . Slashing . | . . . Piercing 1 | . . 1 Sneak Attacks . | . . . Combat Hostiles . | . . . Follow-up Attacks . | . . . Damage Inflicted 2025 | . 755 1270 Guns 855 | . 272 583 Cannons 1127 | . 440 687 Explosions 37 | . 37 . Melee . | . . . Ramming 6 | . 6 . Kinetic 1854 | . 584 1270 Thermal 37 | . 37 . Explosive . | . . . Electromagnetic 128 | . 128 . Impact . | . . . Slashing . | . . . Piercing . | . . . Highest Corruption . | . . . Average Corruption . | . . . Corruption Purged . | . . . Corruption Blocked . | . . . Overload Shots . | . . . Overflow Damage 12 | . 12 . Projectiles 12 | . 12 . Explosions . | . . . Melee . | . . . Knockbacks 8 | . 2 6 Impact . | . . . Kinetic 8 | . 2 6 Secondary . | . . . Self-Inflicted Damage . | . . . Shots . | . . . Rammed . | . . . Targets Rammed 1 | . 1 . Kicked 1 | . 1 . Crushed . | . . . Highest Temperature 135 | . 135 7 Average Temperature 29 | . 31 2 Received Heat Transfer 378 | . 84 294 Siege Activations . | . . . Martial Activations . | . . . Shielding Activations . | . . . Robots Disrupted . | . . . Combat Hostiles . | . . . Robots Corrupted . | . . . Combat Hostiles . | . . . Parts Fried . | . . . Impact Corruptions . | . . . Robots Melted . | . . . Combat Hostiles . | . . . Parts Melted . | . . . Heat Transferred 50 | . 50 . Parts Sabotaged . | . . . Parts Stolen . | . . . Parts Stripped . | . . . Power Chain Reactions 1 | . 1 . Alert | -11 -10 -10 ------- Run | Yrd Mat Sub Maximum Alert Level . | . . . Low Security (%) 100 | 100 100 . Level 1 . | . . . Level 2 . | . . . Level 3 . | . . . Level 4 . | . . . Level 5 . | . . . High Security . | . . . Max Security . | . . . Peak Influence 85 | . 85 . Initial . | . . . Average 5 | . 5 . Influence Increases 540 | . 345 195 Destroy 0b10 Robot/C 320 | . 200 120 Destroy 0b10 Robot/NC 45 | . 45 . Destroy Leader 58 | . 58 . Successful Hack 32 | . 32 . Disable Machine 4 | . 4 . Destroy Structure 6 | . 6 . Lose Combat Pursuer 75 | . . 75 Influence Decreases 540 | . 345 195 Time Decay 540 | . 345 195 Squads Dispatched 2 | . 2 . Investigation 2 | . 2 . Extermination . | . . . Reinforcement . | . . . Assault . | . . . Garrison . | . . . Intercept . | . . . Searches Triggered . | . . . Construction Impeded . | . . . Haulers Reinforced . | . . . Active Scanning Responses . | . . . Cargo Convoy Interrupts . | . . . Stealth | -11 -10 -10 --------- Run | Yrd Mat Sub Distress Signals . | . . . Communications Jammed . | . . . Distress Signals . | . . . Times Spotted 33 | . 14 19 Peak Tracking Total 6 | . 4 6 Tactical Retreats 2 | . . 2 Traps | -11 -10 -10 ------- Run | Yrd Mat Sub Traps Triggered 4 | . 4 . Indirectly . | . . . Trap Hack Attempts . | . . . Triggered . | . . . Disarmed . | . . . Reprogrammed 7 | . 7 . Reused . | . . . Traps Extracted . | . . . Installed . | . . . Triggered . | . . . Machines | -11 -10 -10 ---------- Run | Yrd Mat Sub Machines Disabled 3 | . 1 2 Max in Single Turn 1 | . 1 1 Machines Repaired . | . . . Machines Dismantled . | . . . Machines Sabotaged . | . . . Overloaded Fab Kills . | . . . Hacking | -11 -10 -10 --------- Run | Yrd Mat Sub Machines Accessed 7 | . 7 . Terminals 6 | . 6 . Fabricators . | . . . Repair Stations 1 | . 1 . Recycling Units . | . . . Scanalyzers . | . . . Garrison Access . | . . . Total Hacks 36 | . 36 . Successful 27 | . 27 . Failed 9 | . 9 . Catastrophic . | . . . Database Lockouts . | . . . Manual . | . . . Terminals 30 | . 30 . Fabricators . | . . . Repair Stations 6 | . 6 . Recycling Units . | . . . Scanalyzers . | . . . Garrison Access . | . . . Terminal Hacks 21 | . 21 . Record 4 | . 4 . Prototype ID Bank 3 | . 3 . Level Access Points 1 | . 1 . Branch Access Points 1 | . 1 . Alert Level 1 | . 1 . Locate Traps 1 | . 1 . Reprogram Traps 2 | . 2 . Dispatch Records 2 | . 2 . Patrol Status 1 | . 1 . Assault Status 2 | . 2 . Hauler Manifests 2 | . 2 . Zone Layout 1 | . 1 . Fabricator Hacks . | . . . Repair Station Hacks 6 | . 6 . Scan Component 3 | . 3 . Repair 3 | . 3 . Recycling Unit Hacks . | . . . Scanalyzer . | . . . Garrison Access Hacks . | . . . Unauthorized Hacks . | . . . Terminals . | . . . Fabricators . | . . . Repair Stations . | . . . Recycling Units . | . . . Scanalyzers . | . . . Garrison Access . | . . . Data Cores Recovered . | . . . Used . | . . . Hacking Detections 6 | . 6 . Full Trace Events 5 | . 5 . Feedback Events . | . . . Feedback Blocked . | . . . Robot Schematics Acquired . | . . . Robots Built . | . . . Authchips . | . . . Time . | . . . Total Robot Build Rating . | . . . Part Schematics Acquired . | . . . Parts Built . | . . . Authchips . | . . . Time . | . . . Total Part Build Rating . | . . . Parts Repaired 3 | . 3 . Time 78 | . 78 . Parts Recycled . | . . . Recycled Matter . | . . . Retrieved Matter . | . . . Retrieved Components . | . . . Parts Scanalyzed . | . . . Part Schematics Acquired . | . . . Parts Damaged . | . . . Bothacking | -11 -10 -10 ------------ Run | Yrd Mat Sub Used RIF Installer . | . . . Robots Hacked . | . . . Non-combat . | . . . Combat . | . . . Robot Hacks Applied . | . . . Relay Couplers Released . | . . . Fabnet Peak Effective % . | . . . Robots Rewired . | . . . Allies Hacked . | . . . Hacks Repelled . | . . . Allies | -11 -10 -10 -------- Run | Yrd Mat Sub Total Allies . | . . . Largest Group . | . . . Highest-Rated Group . | . . . Highest-Rated Ally . | . . . Total Orders . | . . . Ally Attacks . | . . . Total Damage . | . . . Kills . | . . . Allies Corrupted . | . . . Allies Melted . | . . . Intel | -11 -10 -10 ------- Run | Yrd Mat Sub Active Infowar (turns) . | . . . Robot Analysis Total . | . . . Derelict Logs Recovered . | . . . Drone Launches . | . . . Drone Recoveries . | . . . Exploration | -11 -10 -10 ------------- Run | Yrd Mat Sub Turns Passed 4262 | 79 1754 2429 Spaces Moved 1548 | 59 688 801 Core 7 | 7 . . Treads . | . . . Legs 1541 | 52 688 801 Wheels . | . . . Hover . | . . . Flight . | . . . Fastest Speed 50 | 50 190 260 Average Speed 240 | 111 203 281 Slowest Speed 470 | 120 260 470 Overloaded Moves . | . . . Propulsion Burnouts . | . . . Robots Hopped . | . . . Potential Cave-ins . | . . . Cave-ins Triggered . | . . . Exploration Rate (%) 49 | 5 98 45 Regions Visited 2 Branch Regions 1 Pre-discovered Areas . | . . . Known Exits Taken 2 | 1 1 . Unknown Exits Taken . | . . . Scrap Searched 3 | . . 3 Spaces Dug 3 | . 3 . Terrain Destroyed 5 | . 5 . Melee . | . . . Projectile 3 | . 3 . AOE 2 | . 2 . Terrain Rammed . | . . . Walls Destroyed . | . . . Machines Disabled . | . . . Actions | -11 -10 -10 --------- Run | Yrd Mat Sub Total 1905 | 69 966 870 Wait 208 | . 208 . Move 1546 | 58 687 801 Hop . | . . . Pick Up 19 | 5 6 8 Fast Attach 18 | 6 11 1 Attach 5 | . 2 3 Detach 4 | . 3 1 Swap 10 | . 8 2 Drop 4 | . 4 . Fire 89 | . 36 53 Melee 1 | . . 1 Ram . | . . . Kick 1 | . 1 . Crush . | . . . Escape Stasis . | . . . Rewire . | . . . Trap . | . . . Miscellaneous . | . . . Route ------- -11/Scrapyard -10/Materials (discovered 5 exits: *Mat x3 / *Min / *Sub) -10/Subcaves (discovered 4 exits: *Mat x2 / *Rec / [*Scr]) History --------- Turn | Location | Event 4 | -11/Scrapyard | Identified exit to Materials 4 | -11/Scrapyard | Discovered exit to Materials (range 15) 80 | -11/Scrapyard | Entered Materials 80 | -10/Materials | Evolved 1 slot: Power x1 317 | -10/Materials | Identified exit to Mines 317 | -10/Materials | Discovered exit to Mines (range 14) 323 | -10/Materials | Build established: Hacker-Mutant 355 | -10/Materials | Identified exit to Materials 928 | -10/Materials | Repaired Aluminum Leg 957 | -10/Materials | Repaired Assault Rifle 984 | -10/Materials | Repaired EM Pulse Gun 1821 | -10/Materials | Identified exit to Subcaves 1821 | -10/Materials | Discovered exit to Subcaves (range 6) 1834 | -10/Materials | Entered Subcaves 1835 | -10/Subcaves | Approached by a straggling Scientist 1992 | -10/Subcaves | Identified exit to Recycling 1992 | -10/Subcaves | Discovered exit to Recycling (range 11) 2123 | -10/Subcaves | Shifting Twisted Machinery released Mak. Spear 2166 | -10/Subcaves | Identified exit to Materials 2166 | -10/Subcaves | Discovered exit to Materials (range 4) 2170 | -10/Subcaves | Shifting Twisted Machinery released Flamer 2270 | -10/Subcaves | Shifting Twisted Machinery released Battle Rifle 2273 | -10/Subcaves | Shifting Twisted Machinery released Mak. Axe 2695 | -10/Subcaves | A swath of the cavern ceiling suddenly collapsed 3095 | -10/Subcaves | Scientist uncovered a shortcut to Scraptown 3288 | -10/Subcaves | Core integrity fell below 50% 3570 | -10/Subcaves | Core integrity fell below 20% 3815 | -10/Subcaves | Discovered exit to Materials (range 10) 4254 | -10/Subcaves | A Subdweller sparked back to life 4254 | -10/Subcaves | A Subdweller sparked back to life 4263 | -10/Subcaves | Destroyed by OR-WEH(R) with Subdweller Shrapnel Launcher Last Messages --------------- 04162_ Searching scrap... 04162_ Found Sub. Laser. 04162_ Found 58 Matter. 04164_ Searching scrap... 04164_ Found Piercing Trap. 04164_ Found Shrapnel Trap. 04164_ Found 56 Matter. 04167_ Searching scrap... 04167_ Found Sub. Machine Gun. 04167_ Found Shrapnel Trap. 04167_ Found 57 Matter. 04175_ Acquired Sub. Machine Gun. 04197_ Subatomizers dissect the Disposable Heat Sink. 04254_ OR-WEH(R) creaks and sparks as it begins to move. 04254_ NG-O9O(R) creaks and sparks as it begins to move. 04257_ NG-O9O(R) destroyed. 04257_ Switching to secondary target: S7-AAH(R). Map ----- +----------------------------------------------------+ | ?????????????????????????????????????????????????? | | ?????????????????????????????????????????????????? | | ?????????????????????????????????????????????????? | | ?????????????????????????????????????????????????? | | ?????????????????????????????????????????????????? | | ?????????????????????????????????????????????????? | | ?????????????????????????????????????????????????? | | ?????????????????????????????????????????????????? | | ?????????????????????????????????????????????????? | | ?????????????????????????????????????????????????? | | ????????????????????????#????????????????????????? | | ????????????????????????